bitfinex/quotes_ETHUSD_20220120
["timestamp","ask_amount","ask_price","bid_price","bid_amount"]
[1642696551708,1.54437945,3248.3,3248.2,0.77195369]
[1642696551911,1.14824722,3248.9,3248.2,0.77195369]
[1642696552314,0.00113685,3248.8,3248.3,0.00170527]
[1642696553264,1.40233447,3248.4,3248.3,0.00170527]
[1642696555571,1.40233447,3248.4,3248.2,0.7663202]
[1642696556474,0.00113685,3248.8,3248.2,0.7663202]
[1642696556869,0.00227369,3248.7,3248.2,0.7663202]
[1642696557314,0.00170527,3248.6,3248.2,0.7663202]
[1642696557512,1.28804893,3248.4,3248.2,0.7663202]
[1642696558313,1.28804893,3248.4,3248.2,0.76854148]
[1642696559216,1.28804893,3248.4,3248.3,0.34618944]
[1642696559415,1.28804893,3248.4,3248.3,0.34841072]
[1642696560216,1.28804893,3248.4,3248.3,2.39799205]
[1642696561859,0.00113685,3248.5,3248.3,2.39799205]
[1642696562065,0.00113685,3248.5,3248.4,2.43530013]
[1642696562967,0.00113685,3248.5,3248.4,4.24888013]
[1642696563164,0.00113685,3248.5,3248.4,5.24888013]
[1642696563365,1.49655485,3249.3,3248.5,6.3]
[1642696563563,0.00963277,3249.6,3248.6,1.79018944]
[1642696563762,0.00963277,3249.6,3248.7,0.34618944]
[1642696563763,0.00170527,3248.8,3248.7,0.34618944]
[1642696563963,0.00170527,3248.8,3248.7,0.79241072]
[1642696564167,0.00170527,3248.8,3248.7,1.09241072]
[1642696564519,0.00170527,3248.8,3248.7,8.16188072]
[1642696564718,0.00963277,3249.6,3248.8,7.72620106]
[1642696564919,0.00963277,3249.6,3248.9,0.79018944]
[1642696565118,0.00113684,3249.0,3248.9,1.744]
[1642696565317,0.00113684,3249.0,3248.9,6.64887607]
[1642696566723,0.00963277,3249.6,3249.0,6.3]
[1642696566921,23.55210238,3249.1,3249.0,10.39980731]
[1642696567118,22.86536107,3249.1,3249.0,10.81980731]
[1642696567319,10.55682107,3249.1,3249.0,10.82380731]
[1642696567519,0.00963277,3249.6,3249.1,4.25]
[1642696567720,0.00963277,3249.6,3249.3,0.76926]
[1642696567919,0.00284212,3249.5,3249.4,8.84379569]
[1642696568122,0.00284212,3249.5,3249.4,8.00326305]
[1642696568363,0.00074392,3249.5,3249.4,11.98806305]
[1642696568566,0.00338086,3250.2,3250.1,0.76922]
[1642696568766,0.00338086,3250.2,3250.1,7.00432]
[1642696569164,0.00338086,3250.2,3250.1,7.30432]
[1642696569564,0.00338086,3250.2,3250.1,2.25432]
[1642696569766,0.00338086,3250.2,3250.1,4.46401241]
[1642696570168,0.00338086,3250.2,3250.1,1.1851]
[1642696570369,2.09272847,3250.2,3250.1,0.444]
[1642696570969,2.09272847,3250.2,3250.1,0.42627]
[1642696571370,2.09272847,3250.2,3250.1,3.52627]
[1642696572212,2.07528638,3250.2,3250.1,3.52627]
[1642696572412,0.00349013,3250.4,3250.1,3.52627]
[1642696572812,0.00454739,3250.3,3250.1,3.52627]
[1642696573013,0.00454739,3250.3,3250.1,3.1]
[1642696573215,0.00397897,3250.2,3250.1,3.1]
[1642696573916,0.00397897,3250.2,3250.1,5.32789416]
[1642696574115,0.00397897,3250.2,3250.1,3.1]
[1642696578768,0.01873641,3250.2,3250.1,3.1]
[1642696579269,2.97222654,3250.2,3250.1,3.1]
[1642696580318,0.02222654,3250.2,3250.1,3.1]
[1642696592368,2.137902,3250.2,3250.1,3.1]
[1642696594371,2.087902,3250.2,3250.1,3.1]
[1642696595415,2.087902,3250.2,3250.1,2.1]
[1642696598964,0.78271879,3250.0,3249.2,0.444]
[1642696599166,0.78271879,3250.0,3248.9,2.22675754]
[1642696599361,0.78271879,3250.0,3249.3,0.00511582]
[1642696599362,1.08271879,3250.0,3249.3,0.00511582]
[1642696599761,1.65806932,3249.9,3249.3,0.00511582]
[1642696599961,1.65806932,3249.9,3248.9,0.00738951]
[1642696599962,0.01063547,3249.8,3248.9,0.00738951]
[1642696600165,1.35973787,3249.1,3248.9,0.00738951]
[1642696600363,2.23739301,3249.8,3248.9,0.00738951]
[1642696600567,1.40336,3249.9,3248.9,0.00738951]
[1642696600963,1.52557305,3249.0,3248.6,0.00909478]
[1642696601164,1.52557305,3249.0,3248.9,3.1]
[1642696601666,1.52557305,3249.0,3248.9,3.10738951]
[1642696602346,1.52557305,3249.0,3248.9,0.00738951]
[1642696602745,1.52557305,3249.0,3248.6,0.00909478]
[1642696604651,1.52557305,3249.0,3248.4,0.01023163]
[1642696614263,2.21567153,3248.9,3248.4,0.01023163]
[1642696619520,2.21465945,3248.9,3248.4,0.01023163]
[1642696621869,1.52557305,3249.0,3248.4,0.01023163]
[1642696622869,1.52557305,3249.0,3248.4,0.77986163]
[1642696623070,1.52557305,3249.0,3248.5,0.00444136]
[1642696623270,1.52557305,3249.0,3248.5,0.0096632]
[1642696623473,1.52557305,3249.0,3248.6,0.00909478]
[1642696623669,1.52557305,3249.0,3248.3,0.00444136]
[1642696623670,1.52557305,3249.0,3248.4,0.01023163]
[1642696625719,0.0096329,3248.9,3248.4,0.01023163]
[1642696626118,1.52557305,3249.0,3248.4,0.01023163]
[1642696629668,3.8,3248.9,3248.1,5.13367299]
[1642696629868,0.01279904,3248.8,3248.2,0.00443386]
[1642696630071,0.01279904,3248.8,3248.2,0.00113684]
[1642696630270,1.52557305,3249.0,3248.2,0.00113684]
[1642696630271,0.00170527,3248.7,3248.2,0.00113684]
[1642696630569,0.00113685,3248.6,3248.2,0.00557083]
[1642696630768,0.00113685,3248.6,3248.2,0.00113684]
[1642696639376,0.00113685,3248.6,3248.2,0.57601119]
[1642696639621,0.00113685,3248.6,3248.2,0.44513684]
[1642696639814,0.00113685,3248.6,3248.3,0.13087387]
[1642696642422,0.00113685,3248.6,3248.4,0.444]
[1642696642623,0.00113685,3248.6,3248.5,8.66747299]
[1642696642822,0.00113685,3248.6,3248.5,6.87487387]
[1642696643023,0.00113685,3248.6,3248.5,7.87487387]
[1642696643874,0.00113685,3248.6,3248.5,7.99007387]
[1642696644174,0.00113685,3248.6,3248.5,7.87487387]
[1642696644373,3.94797225,3249.7,3248.6,5.55]
[1642696644574,2.4493863,3249.6,3249.0,0.76944]
[1642696644775,2.4493863,3249.5,3249.1,3.21147849]
[1642696644973,2.4493863,3249.9,3249.2,0.13087387]
[1642696645174,1.40097708,3249.5,3249.3,0.444]
[1642696645375,1.40097708,3249.5,3249.4,2.16420432]
[1642696645573,1.40097708,3249.5,3249.4,3.144]
[1642696645774,1.40097708,3249.5,3249.4,0.444]
[1642696647424,1.40097708,3249.5,3249.4,3.344]
[1642696647825,1.40097708,3249.5,3249.4,0.444]
[1642696650785,1.40097708,3249.5,3249.4,0.744]
[1642696651477,1.40097708,3249.5,3249.4,3.194]
[1642696652083,0.78271879,3250.0,3249.4,3.194]
[1642696652382,0.0073895,3249.9,3249.6,1.53862]
[1642696652583,0.0073895,3249.9,3249.6,1.83862]
[1642696652782,0.78271879,3250.0,3249.6,1.83862]
[1642696652783,0.00682108,3249.8,3249.7,0.444]
[1642696653381,0.00682108,3249.8,3249.7,3.244]
[1642696654386,0.00682108,3249.8,3249.7,5.44917795]
[1642696654613,0.00682108,3249.8,3249.7,3.244]
[1642696654816,0.00682108,3249.8,3249.7,0.744]
[1642696655421,0.00682108,3249.8,3249.7,3.594]
[1642696657223,0.00682108,3249.8,3249.7,0.744]
[1642696657423,0.00682108,3249.8,3249.7,0.444]
[1642696657623,0.00682108,3249.8,3249.1,0.444]
[1642696658022,0.00625266,3249.7,3249.1,0.444]
[1642696658265,0.00625266,3249.7,3249.2,2.36743203]
[1642696658566,0.00568423,3249.6,3249.3,3.64128022]
[1642696658765,0.00568423,3249.6,3249.3,3.62724731]
[1642696658968,0.00511581,3249.5,3249.3,3.84315726]
[1642696659168,0.00511581,3249.5,3249.4,6.96424958]
[1642696659368,0.78271879,3250.0,3249.5,0.76932]
[1642696659568,0.78271879,3250.0,3249.6,0.444]
[1642696659769,0.0073895,3249.9,3249.6,1.21332]
[1642696660170,0.00682108,3249.8,3249.6,2.21332]
[1642696660372,0.00682108,3249.8,3249.7,2.16092201]
[1642696660568,0.78271879,3250.0,3249.7,2.90492201]
[1642696660769,2.42149905,3249.9,3249.8,4.21928]
[1642696660969,2.42149905,3249.9,3249.8,7.82710202]
[1642696660970,2.42888855,3249.9,3249.8,7.82710202]
[1642696661170,0.0073895,3249.9,3249.8,7.82710202]
[1642696661569,0.0073895,3249.9,3249.8,6.82710202]
[1642696662028,2.43077209,3249.9,3249.8,7.82710202]
[1642696662224,2.43077209,3249.9,3249.8,5.66328]
[1642696662425,0.0073895,3249.9,3249.8,7.79117528]
[1642696663226,0.0073895,3249.9,3249.8,8.09117528]
[1642696665428,0.0073895,3249.9,3249.8,7.79117528]
[1642696665631,0.0073895,3249.9,3249.8,8.09117528]
[1642696665867,0.0073895,3249.9,3249.8,7.79117528]
[1642696668472,0.0073895,3249.9,3249.8,8.09117528]
[1642696668672,0.00658491,3249.9,3249.8,8.09117528]
[1642696669272,0.00658491,3249.9,3249.8,4.64117528]
[1642696670923,0.00658491,3249.9,3249.8,4.34117528]
[1642696673366,0.00658491,3249.9,3249.8,2.21328]
[1642696673569,0.00658491,3249.9,3249.8,1.444]
[1642696673766,0.00658491,3249.9,3249.8,4.544]
[1642696674869,2.42208309,3249.9,3249.8,4.544]
[1642696675068,0.00658491,3249.9,3249.8,4.544]
[1642696675471,2.41976249,3249.9,3249.8,4.544]
[1642696675771,2.41976249,3249.9,3249.8,3.544]
[1642696676471,2.41976249,3249.9,3249.8,2.844393]
[1642696676672,2.41895469,3249.9,3249.8,2.844393]
[1642696677121,2.41895469,3249.9,3249.8,3.144393]
[1642696677924,2.41895469,3249.9,3249.8,6.644393]
[1642696678124,3.41895469,3249.9,3249.8,7.644393]
[1642696678324,3.41895469,3249.9,3249.8,4.588393]
[1642696678524,1.00577711,3249.9,3249.8,5.67091577]
[1642696678928,1.00577711,3249.9,3249.8,3.588393]
[1642696679727,1.00577711,3249.9,3249.8,3.888393]
[1642696679926,1.00577711,3249.9,3249.8,4.888393]
[1642696680326,1.00577711,3249.9,3249.8,4.92805567]
[1642696680767,1.00577711,3249.9,3249.8,4.62805567]
[1642696681971,0.48263766,3249.9,3249.8,11.22805567]
[1642696682174,0.63271879,3250.0,3249.9,6.2826]
[1642696682376,1.50420932,3251.3,3249.9,6.2826]
[1642696682377,0.00333908,3250.8,3250.0,6.3]
[1642696682573,0.00333908,3251.0,3250.2,0.76905]
[1642696682772,0.00397897,3250.6,3250.4,10.545]
[1642696682972,0.00397897,3250.6,3250.5,7.17481335]
[1642696683174,0.00228048,3251.5,3250.5,8.63150326]
[1642696683376,0.00228048,3251.5,3251.1,2.7097557]
[1642696683675,0.00738951,3251.2,3251.1,1.06903]
[1642696683873,0.00738951,3251.2,3251.1,1.51303]
[1642696684077,2.36278003,3251.2,3251.1,1.51303]
[1642696684275,0.00738951,3251.2,3251.1,1.51303]
[1642696684531,2.36278003,3251.2,3251.1,1.51303]
[1642696684920,2.36278003,3251.2,3251.1,3.61794194]
[1642696685120,0.00738951,3251.2,3251.1,1.51303]
[1642696685321,2.36278003,3251.2,3251.1,1.51303]
[1642696685521,0.00738951,3251.2,3251.1,3.57153236]
[1642696685722,2.36278003,3251.2,3251.1,1.51303]
[1642696685924,0.00738951,3251.2,3251.1,1.51303]
[1642696686121,0.00738951,3251.2,3251.1,0.744]
[1642696686122,2.36278003,3251.2,3251.1,0.744]
[1642696686323,2.36278003,3251.2,3250.6,0.444]
[1642696686522,2.35539052,3251.1,3250.6,0.444]
[1642696686729,0.00333908,3251.0,3250.6,0.444]
[1642696686923,0.00959174,3251.0,3250.6,0.444]
[1642696687127,1.5605499,3250.9,3250.6,0.444]
[1642696687427,1.5605499,3250.9,3250.2,0.444]
[1642696687428,4.56539289,3250.8,3250.2,0.444]
[1642696687627,2.35539052,3250.7,3250.2,0.444]
[1642696687829,0.00333908,3250.6,3249.9,3.5]
[1642696688026,2.36270857,3250.6,3249.9,3.5]
[1642696688271,2.36214015,3250.5,3249.9,3.5]
[1642696688478,2.36214015,3250.5,3249.7,1.336449]
[1642696688479,2.35539052,3250.4,3249.7,1.336449]
[1642696688673,2.35539052,3250.4,3249.8,0.22192927]
[1642696688674,2.3587296,3250.3,3249.8,0.22192927]
[1642696688874,2.35539052,3250.2,3250.0,0.76928]
[1642696689073,2.35539052,3250.1,3250.0,1.83851]
[1642696689277,2.35652737,3250.1,3250.0,1.83851]
[1642696689474,2.35652737,3250.1,3250.0,1.06928]
[1642696690280,0.00113685,3250.1,3250.0,1.26119971]
[1642696690878,0.00113685,3250.1,3250.0,1.06928]
[1642696692429,2.30106478,3250.1,3250.0,1.06928]
[1642696692629,0.00113685,3250.1,3250.0,1.06928]
[1642696693226,2.30106478,3250.1,3250.0,1.06928]
[1642696694027,2.30106478,3250.1,3250.0,4.16928]
[1642696694828,2.30318203,3250.1,3250.0,4.16928]
[1642696696677,2.30318203,3250.1,3250.0,4.16841101]
[1642696697279,2.30318203,3250.1,3250.0,4.39808011]
[1642696697480,2.30318203,3250.1,3250.0,4.16841101]
[1642696698081,2.30318203,3250.1,3250.0,4.39804127]
[1642696699082,2.30318203,3250.1,3250.0,4.16841101]
[1642696699285,2.30318203,3250.1,3250.0,4.39752374]
[1642696701755,2.30318203,3250.1,3250.0,4.16841101]
[1642696702753,2.30318203,3250.1,3250.0,4.84679165]
[1642696702953,2.30318203,3250.1,3250.0,4.61241101]
[1642696703156,2.30318203,3250.1,3250.0,4.88078594]
[1642696703379,2.30318203,3250.1,3250.0,4.61241101]
[1642696703579,2.30318203,3250.1,3250.0,4.88076665]
[1642696704481,2.30318203,3250.1,3250.0,4.61241101]
[1642696704681,2.30318203,3250.1,3250.0,4.31328]
[1642696704885,2.30400462,3250.1,3250.0,3.1]
[1642696705083,4.7,3250.0,3249.2,0.444]
[1642696705281,4.49515761,3249.9,3249.3,3.8075317]
[1642696705481,2.29992793,3249.8,3249.4,0.3075317]
[1642696705682,2.29992793,3249.7,3249.3,0.00341054]
[1642696705881,2.29992793,3249.7,3249.1,0.769476]
[1642696705882,2.29992793,3249.6,3249.5,0.00227369]
[1642696706085,2.29992793,3249.6,3249.2,0.3116288]
[1642696706283,2.29992793,3249.5,3249.3,0.30764984]
[1642696706481,2.494533,3249.7,3249.2,0.00397896]
[1642696706482,5.24992793,3249.4,3249.2,0.00397896]
[1642696706781,2.29992793,3249.3,3248.7,0.76959]
[1642696707027,2.494533,3249.7,3248.8,0.30785201]
[1642696707233,2.21914858,3249.6,3248.8,0.30785201]
[1642696707433,2.21914858,3249.6,3248.9,0.00568423]
[1642696707630,2.21914858,3249.6,3249.0,0.30785201]
[1642696708031,2.21914858,3249.6,3249.1,0.00454738]
[1642696709334,2.21914858,3249.6,3249.2,0.31296364]
[1642696709534,2.21914858,3249.6,3249.2,0.61296364]
[1642696709734,2.21914858,3249.6,3249.3,0.00341054]
[1642696709936,0.00291381,3249.5,3249.3,0.00341054]
[1642696711082,0.00291381,3249.5,3249.3,1.00879592]
[1642696711286,0.00291381,3249.5,3249.3,0.77284614]
[1642696711489,0.00291381,3249.5,3249.4,0.00284211]
[1642696711891,0.00291381,3249.5,3249.4,0.24213113]
[1642696712089,0.00291381,3249.5,3249.4,0.68613113]
[1642696712389,0.00291381,3249.5,3249.4,0.72361907]
[1642696712592,0.00291381,3249.5,3249.4,1.84361907]
[1642696712790,0.00191184,3249.5,3249.4,6.39041907]
[1642696712989,0.00191184,3249.5,3249.4,1.84201907]
[1642696713188,0.00191184,3249.5,3249.4,1.84121907]
[1642696713389,0.00191184,3249.5,3249.4,1.84441907]
[1642696713589,0.00191184,3249.5,3249.4,1.84681907]
[1642696713891,2.28460517,3250.1,3249.6,1.538493]
[1642696714090,2.28460517,3250.1,3249.7,1.4866676]
[1642696714289,2.28460517,3250.1,3249.7,1.51440684]
[1642696714290,2.28346832,3250.0,3249.7,1.51440684]
[1642696714536,0.00113685,3250.1,3249.7,1.51440684]
[1642696715138,1.36411086,3249.9,3249.7,1.51440684]
[1642696715737,1.36411086,3249.9,3249.7,4.61440684]
[1642696716538,0.00113685,3250.1,3249.7,4.61440684]
[1642696716937,0.00113685,3250.1,3249.7,3.84513684]
[1642696717542,1.10864703,3249.9,3249.7,3.84513684]
[1642696718383,1.10864703,3249.9,3249.7,3.88066662]
[1642696718589,0.00113685,3250.1,3249.7,3.88066662]
[1642696718789,0.00113685,3250.1,3249.7,3.84513684]
[1642696719193,2.27897726,3250.2,3249.7,3.84513684]
[1642696719389,6.40595202,3250.7,3249.7,3.84513684]
[1642696719390,2.27897726,3250.1,3249.8,0.76932]
[1642696719595,0.00333908,3250.5,3249.9,0.744]
[1642696719596,2.27897726,3250.0,3249.9,0.744]
[1642696719791,0.00170528,3250.2,3249.9,0.744]
[1642696719992,1.48258214,3250.1,3249.9,0.744]
[1642696720194,2.27897726,3250.0,3249.9,0.744]
[1642696720396,2.17897726,3250.0,3249.9,0.744]
[1642696723055,2.12897726,3250.0,3249.9,0.744]
[1642696726683,2.02897726,3250.0,3249.9,0.744]
[1642696730946,2.02897726,3250.0,3249.9,6.12249143]
[1642696731143,0.00284212,3250.4,3249.9,6.12249143]
[1642696731543,0.0022737,3250.3,3249.9,6.12249143]
[1642696731943,0.00284212,3250.4,3249.9,6.12249143]
[1642696732344,0.0022737,3250.3,3249.9,2.86878177]
[1642696732660,0.0022737,3250.3,3249.9,2.83305895]
[1642696732944,0.0022737,3250.3,3249.9,2.87035331]
[1642696733145,0.0022737,3250.3,3249.9,2.83305895]
[1642696733386,0.0022737,3250.3,3249.9,2.86357473]
[1642696733589,0.0022737,3250.3,3249.9,2.8670293]
[1642696733788,0.0022737,3250.3,3249.9,2.83305895]
[1642696734591,1.115096,3250.4,3249.9,2.83305895]
[1642696734794,1.115096,3250.4,3250.0,0.00170527]
[1642696734991,1.115096,3250.4,3250.1,0.444]
[1642696735191,1.115096,3250.4,3250.1,1.21324]
[1642696735394,1.115096,3250.4,3250.1,1.51324]
[1642696736392,1.1133519,3250.4,3250.1,1.51324]
[1642696741691,0.00333908,3250.5,3250.1,1.51324]
[1642696741892,1.50420932,3250.8,3250.1,1.51324]
[1642696742093,1.50420932,3250.8,3250.2,2.22638603]
[1642696742292,0.00113685,3250.5,3250.3,0.444]
[1642696742508,0.00113685,3250.5,3250.4,2.68857936]
[1642696742691,3.1765,3251.0,3250.4,0.744]
[1642696742692,0.00284212,3250.8,3250.4,0.744]
[1642696742893,0.00284212,3250.8,3250.4,1.2132]
[1642696743093,0.00227369,3250.7,3250.4,3.30224147]
[1642696743492,0.00170527,3250.6,3250.4,3.30224147]
[1642696743896,0.00284212,3250.8,3250.4,3.30224147]
[1642696744293,1.13891256,3250.9,3250.4,3.30224147]
[1642696744294,0.00227369,3250.7,3250.4,3.30224147]
[1642696744729,1.13891256,3250.9,3250.4,3.30224147]
[1642696744730,0.00170527,3250.6,3250.4,3.30224147]
[1642696745130,0.00284212,3250.8,3250.4,3.30224147]
[1642696745431,0.00227369,3250.7,3250.4,6.40224147]
[1642696745832,0.00170527,3250.6,3250.4,4.3132]
[1642696746235,0.00284212,3250.8,3250.4,4.3132]
[1642696746637,0.00227369,3250.7,3250.4,6.37544806]
[1642696747039,0.00170527,3250.6,3250.4,4.3132]
[1642696747637,0.00170527,3250.6,3250.4,6.36675438]
[1642696747836,0.00170527,3250.6,3250.4,3.544]
[1642696748293,1.28232245,3250.6,3250.4,3.544]
[1642696748490,2.17754393,3250.5,3250.4,3.544]
[1642696749791,2.17754393,3250.5,3250.4,5.81038824]
[1642696749996,0.00170527,3250.6,3250.4,8.34864824]
[1642696750192,0.00170527,3250.6,3250.5,5.95941899]
[1642696750391,0.00170527,3250.6,3250.5,8.69915655]
[1642696750592,0.00170527,3250.6,3250.5,10.37191546]
[1642696751193,0.00170527,3250.6,3250.5,11.14099546]
[1642696751601,0.00170527,3250.6,3250.5,10.21973354]
[1642696753736,0.00170527,3250.6,3250.5,11.33398315]
[1642696754140,0.00170527,3250.6,3250.5,11.63398315]
[1642696754336,0.00170527,3250.6,3250.5,11.75158315]
[1642696754737,0.00170527,3250.6,3250.5,17.29898315]
[1642696754937,0.00085459,3250.6,3250.5,17.30138315]
[1642696755138,2.18398347,3251.4,3250.8,2.30693]
[1642696755438,2.18565147,3251.3,3250.9,5.67801411]
[1642696755637,2.18398347,3251.2,3251.0,0.70876537]
[1642696755884,0.00507854,3251.2,3251.1,5.12794192]
[1642696756084,0.00228048,3251.5,3251.1,4.02932642]
[1642696756287,1.38652834,3251.5,3251.1,4.02932642]
[1642696756482,0.00621539,3251.4,3251.1,4.02932642]
[1642696756686,0.00621539,3251.4,3251.1,6.16764815]
[1642696756882,0.00397896,3251.3,3251.1,4.02932642]
[1642696757087,0.00397896,3251.3,3251.1,5.56564487]
[1642696757285,0.00341054,3251.2,3251.1,4.02932642]
[1642696757689,0.00397896,3251.2,3251.1,1.47932642]
[1642696758085,0.00397896,3251.2,3251.1,0.47932642]
[1642696758488,0.00564696,3251.2,3251.1,0.47932642]
[1642696759090,0.00564696,3251.2,3251.1,1.24829642]
[1642696759293,0.00397896,3251.2,3251.1,3.99829642]
[1642696760537,0.00397896,3251.2,3251.1,4.99829642]
[1642696761739,0.00397896,3251.2,3251.1,7.73232995]
[1642696761942,0.00397896,3251.2,3251.1,5.29829642]
[1642696762142,0.00397896,3251.2,3251.1,7.94829642]
[1642696762944,0.00397896,3251.2,3251.1,5.29829642]
[1642696766590,0.00397896,3251.2,3251.1,8.39829642]
[1642696767030,1.1718,3252.1,3251.3,1.31847261]
[1642696767246,1.1718,3252.1,3251.5,0.76892]
[1642696767438,0.00284212,3251.8,3251.6,0.444]
[1642696767638,0.00284212,3251.8,3251.6,0.48135082]
[1642696767838,0.0022737,3251.7,3251.6,0.48135082]
[1642696768237,0.00454739,3251.7,3251.6,0.48135082]
[1642696770883,2.17688286,3251.7,3251.6,0.48135082]
[1642696771086,2.17688286,3251.7,3251.0,0.5608]
[1642696771087,4.39022976,3251.7,3251.0,0.5608]
[1642696771284,4.38568237,3251.6,3250.9,0.033302]
[1642696771483,4.38568237,3251.6,3250.8,2.30693]
[1642696771484,2.17233547,3251.5,3250.8,2.30693]
[1642696771684,2.17233547,3251.4,3250.8,2.30693]
[1642696771886,0.00113685,3251.5,3250.8,2.30693]
[1642696771887,2.17233547,3251.3,3250.8,2.30693]
[1642696772087,0.00113685,3251.5,3250.9,0.03986167]
[1642696772088,2.17233547,3251.2,3250.9,0.03986167]
[1642696772287,2.17233547,3251.2,3251.0,0.03372395]
[1642696772491,2.17233547,3251.2,3251.1,3.13933182]
[1642696772687,2.17233547,3251.2,3251.1,3.10113684]
[1642696772890,2.1674654,3251.2,3251.1,3.10113684]
[1642696773388,0.00113685,3251.5,3251.1,3.10113684]
[1642696773389,2.16860225,3251.5,3251.1,3.10113684]
[1642696773988,2.16860225,3251.5,3251.1,3.40113684]
[1642696774187,2.16860225,3251.5,3251.1,3.43673263]
[1642696775050,2.16860225,3251.5,3251.2,0.7690704]
[1642696775229,2.16860225,3251.5,3251.3,0.3]
[1642696775430,2.16860225,3251.5,3251.3,0.33278002]
[1642696776033,2.1674654,3251.4,3251.3,0.33278002]
[1642696776438,0.00113685,3251.5,3251.3,0.33278002]
[1642696777545,2.1674654,3251.5,3251.4,0.444]
[1642696777739,2.1674654,3251.5,3251.4,0.47553124]
[1642696777939,1.1794,3252.2,3251.5,3.7]
[1642696778141,5.19647288,3252.3,3251.5,3.7]
[1642696778142,0.00276356,3252.3,3252.1,1.38974395]
[1642696778388,0.00276356,3252.3,3252.2,0.444]
[1642696778787,0.00731095,3252.3,3252.2,0.744]
[1642696778990,0.00731095,3252.3,3252.2,3.85638192]
[1642696780790,0.00731095,3252.3,3252.2,0.77559743]
[1642696782035,0.00731095,3252.3,3252.2,8.04207336]
[1642696782235,0.00731095,3252.3,3252.2,5.59207336]
[1642696782435,0.00166758,3252.7,3252.3,0.7687]
[1642696782637,0.00166758,3252.7,3252.3,1.57066607]
[1642696782840,0.00394127,3252.7,3252.4,0.7686877]
[1642696783035,0.00394127,3252.7,3252.5,0.03773219]
[1642696783637,0.00227369,3252.7,3252.5,0.03773219]
[1642696783837,0.00227369,3252.7,3252.6,0.444]
[1642696784037,0.00227369,3252.7,3252.6,0.744]
[1642696784239,0.00227369,3252.7,3252.6,0.77737051]
[1642696784437,0.22687525,3252.5,3252.4,0.7686877]
[1642696784643,0.22687525,3252.5,3252.3,3.0747653]
[1642696784838,0.22801209,3252.5,3252.4,1.444]
[1642696785040,0.22801209,3252.5,3252.4,1.47673528]
[1642696785885,0.22801209,3252.5,3252.4,3.62915396]
[1642696786287,0.22801209,3252.5,3252.4,6.72915396]
[1642696786486,0.22801209,3252.5,3252.4,4.57673528]
[1642696787100,0.22801209,3252.5,3252.4,6.63872091]
[1642696788290,0.22801209,3252.5,3252.4,6.93872091]
[1642696788491,0.00166758,3253.0,3252.7,2.71740946]
[1642696788691,1.50600672,3253.1,3252.7,4.29434536]
[1642696788890,0.0022737,3252.9,3252.8,1.56920843]
[1642696789090,0.0022737,3252.9,3252.8,1.87176355]
[1642696789938,0.0022737,3252.9,3252.8,2.87176355]
[1642696793309,0.0022737,3252.9,3252.8,1.57176355]
[1642696793591,0.30138201,3252.9,3252.7,1.0]
[1642696793795,6.31291032,3252.8,3252.7,1.0]
[1642696793992,1.19927138,3252.6,3252.4,3.1]
[1642696794192,6.59560649,3252.5,3252.4,0.0001]
[1642696794392,6.59727407,3252.5,3252.4,0.0001]
[1642696794593,2.29727407,3252.5,3252.4,0.0001]
[1642696794792,2.85166758,3252.5,3252.4,0.0001]
[1642696795897,5.14727407,3252.5,3252.4,0.0001]
[1642696796295,2.85166758,3252.5,3252.4,0.0001]
[1642696796695,6.30166758,3252.5,3252.4,0.0001]
[1642696797940,8.34242859,3252.5,3252.4,0.0001]
[1642696798139,10.64029138,3252.5,3252.4,0.0001]
[1642696798338,7.19029138,3252.5,3252.4,0.0001]
[1642696799339,4.89242859,3252.5,3252.4,0.0001]
[1642696799540,0.0007,3252.2,3251.7,1.03637834]
[1642696799741,0.0007,3252.2,3251.7,1.57396834]
[1642696799941,0.0007,3252.2,3251.8,0.03717711]
[1642696800142,2.04146101,3252.2,3251.8,0.03717711]
[1642696800342,2.04242859,3252.1,3251.9,0.00430223]
[1642696800542,2.04076101,3252.0,3251.9,0.00430223]
[1642696800984,2.04076101,3252.0,3251.9,0.03968664]
[1642696801582,3.43731233,3252.0,3251.9,0.03968664]
[1642696801982,2.04076101,3252.0,3251.9,0.03968664]
[1642696806441,2.04076101,3252.0,3251.9,3.13968664]
[1642696807243,2.04242859,3252.0,3251.9,3.13968664]
[1642696807444,2.04076101,3252.0,3251.9,3.13968664]
[1642696812041,2.04242859,3252.0,3251.9,3.13968664]
[1642696812243,2.04076101,3252.0,3251.9,3.13968664]
[1642696814048,2.04076101,3252.0,3251.9,3.14070117]
[1642696814647,0.0007,3252.2,3251.9,6.74324818]
[1642696815047,0.0007,3252.2,3252.0,0.0037338]
[1642696815249,0.00166758,3252.4,3252.0,0.00474831]
[1642696815449,0.00166758,3252.4,3252.1,1.5374821]
[1642696815648,0.00166758,3252.4,3252.1,1.58036834]
[1642696815892,0.00166758,3252.4,3252.2,0.00259696]
[1642696816095,0.00166758,3252.4,3252.2,0.00361147]
[1642696816394,0.00166758,3252.4,3252.3,0.00202853]
[1642696816795,0.00166758,3252.4,3252.3,0.0390916]
[1642696816999,0.00166758,3252.4,3252.3,0.00304304]
[1642696817295,3.49713417,3252.6,3252.3,0.03858159]
[1642696817296,3.49209641,3252.6,3252.3,0.03858159]
[1642696817694,3.49209641,3252.6,3252.4,0.00146011]
[1642696817895,3.49209641,3252.6,3252.4,0.00247462]
[1642696818096,3.49209641,3252.6,3252.2,1.5374863]
[1642696818295,1.53963502,3252.3,3252.2,1.53850081]
[1642696818496,1.53963502,3252.4,3252.2,1.53850081]
[1642696818797,1.53963502,3252.4,3252.2,1.57447808]
[1642696819197,1.53963502,3252.3,3252.2,1.57447808]
[1642696819640,1.53963502,3252.3,3252.2,0.03699178]
[1642696820635,3.49209641,3252.6,3252.2,0.03699178]
[1642696820636,1.53963502,3252.4,3252.2,0.03699178]
[1642696821237,1.53963502,3252.5,3252.2,0.03699178]
[1642696821436,1.53963502,3252.4,3252.2,0.03699178]
[1642696823788,1.53963502,3252.5,3252.3,0.47722805]
[1642696823987,1.53963502,3252.4,3252.3,0.47824256]
[1642696824187,3.49209641,3252.6,3252.3,0.47824256]
[1642696824799,1.54627585,3252.4,3252.3,1.24693256]
[1642696826195,1.54627585,3252.5,3252.3,1.24693256]
[1642696826595,1.54627585,3252.5,3252.3,0.47824256]
[1642696827240,1.54627585,3252.4,3252.3,0.47824256]
[1642696828044,1.54627585,3252.4,3252.3,0.77824256]
[1642696828843,1.54627585,3252.5,3252.3,0.77824256]
[1642696829044,1.54627585,3252.4,3252.3,0.77824256]
[1642696829245,1.19423362,3252.6,3252.3,1.07824256]
[1642696829246,1.54627585,3252.5,3252.3,1.07824256]
[1642696829445,1.5479434,3252.5,3252.3,0.77824256]
[1642696829644,1.5479434,3252.5,3252.3,1.77824256]